[Event "Un Rapid per cominciare!"]
[Site "Chess.com"]
[Date "2020.04.10"]
[Round "2"]
[White "Piccolorso"]
[Black "GuGe14"]
[Result "0-1"]
[WhiteElo "1398"]
[BlackElo "1870"]
[TimeControl "720+3"]
[EndTime "12:13:03 PDT"]
[Termination "GuGe14 ha vinto per abbandono"]

1. e4 {[%clk 0:11:52.3]} 1... c6 {[%clk 0:12:00.3]} 2. d4 {[%clk 0:11:47.5]}
2... d5 {[%clk 0:12:00.1]} 3. e5 {[%clk 0:11:48.5]} 3... Bf5 {[%clk 0:12:01.5]}
4. Bd3 {[%clk 0:11:45.7]} 4... Bxd3 {[%clk 0:12:00.8]} 5. Qxd3 {[%clk
0:11:46.3]} 5... e6 {[%clk 0:12:02.6]} 6. Nf3 {[%clk 0:11:31.8]} 6... c5 {[%clk
0:11:57.8]} 7. c3 {[%clk 0:11:31.5]} 7... Nc6 {[%clk 0:11:50.7]} 8. a3 {[%clk
0:11:27]} 8... Nge7 {[%clk 0:11:39.3]} 9. b4 {[%clk 0:11:24.1]} 9... c4 {[%clk
0:11:40.3]} 10. Qc2 {[%clk 0:10:35.4]} 10... Nf5 {[%clk 0:10:51.5]} 11. O-O
{[%clk 0:10:34]} 11... h6 {[%clk 0:10:09.7]} 12. Nbd2 {[%clk 0:09:49.1]} 12...
g5 {[%clk 0:09:52.4]} 13. h3 {[%clk 0:09:42.6]} 13... Nce7 {[%clk 0:09:31.2]}
14. Nh2 {[%clk 0:09:43.8]} 14... Ng6 {[%clk 0:09:04.9]} 15. Ng4 {[%clk 0:08:00]}
15... Be7 {[%clk 0:07:32.7]} 16. Nf6+ {[%clk 0:08:00.5]} 16... Bxf6 {[%clk
0:07:34.5]} 17. exf6 {[%clk 0:08:02]} 17... Qxf6 {[%clk 0:07:27.3]} 18. Nf3
{[%clk 0:07:59]} 18... Nfh4 {[%clk 0:06:38.2]} 19. Qe2 {[%clk 0:07:13.4]} 19...
Nxf3+ {[%clk 0:05:40.6]} 20. Qxf3 {[%clk 0:07:12.8]} 20... Qxf3 {[%clk
0:05:42.4]} 21. gxf3 {[%clk 0:07:14.1]} 21... Nh4 {[%clk 0:05:14.7]} 22. f4
{[%clk 0:07:05.9]} 22... Rg8 {[%clk 0:04:50.1]} 23. Kh1 {[%clk 0:06:32.6]} 23...
Kd7 {[%clk 0:03:53.7]} 24. Rg1 {[%clk 0:06:12.5]} 24... f6 {[%clk 0:02:41.3]}
25. Be3 {[%clk 0:06:11.3]} 25... Nf5 {[%clk 0:02:32.5]} 26. fxg5 {[%clk
0:06:00.8]} 26... Nxe3 {[%clk 0:02:19.6]} 27. fxe3 {[%clk 0:06:02]} 27... Rxg5
{[%clk 0:02:08.6]} 28. Rxg5 {[%clk 0:05:49.2]} 28... hxg5 {[%clk 0:02:05.5]} 29.
Kg2 {[%clk 0:05:36.9]} 29... Rg8 {[%clk 0:01:45.2]} 30. Kg3 {[%clk 0:05:32.2]}
30... f5 {[%clk 0:01:39.4]} 31. a4 {[%clk 0:04:36.6]} 31... g4 {[%clk
0:01:06.4]} 32. h4 {[%clk 0:04:36.9]} 32... Kd6 {[%clk 0:01:05.4]} 33. h5 {[%clk
0:04:36.6]} 33... e5 {[%clk 0:01:04.9]} 34. h6 {[%clk 0:04:26.3]} 34... Rh8
{[%clk 0:01:02.5]} 35. Rh1 {[%clk 0:04:27.8]} 35... Ke6 {[%clk 0:01:00.4]} 36.
h7 {[%clk 0:04:02.4]} 36... e4 {[%clk 0:00:52.9]} 37. Rh5 {[%clk 0:04:00.7]}
37... Kf6 {[%clk 0:00:49.7]} 38. Kf4 {[%clk 0:04:00.5]} 38... Kg6 {[%clk
0:00:41.8]} 39. Rxf5 {[%clk 0:03:45.5]} 39... Rxh7 {[%clk 0:00:29.6]} 40. Rg5+
{[%clk 0:03:47.1]} 40... Kf6 {[%clk 0:00:27.2]} 41. Rxg4 {[%clk 0:03:48.4]}
41... Rh3 {[%clk 0:00:20.9]} 42. Rg3 {[%clk 0:03:46.5]} 42... Rh2 {[%clk
0:00:17.4]} 43. Rg6+ {[%clk 0:03:35.4]} 43... Kxg6 {[%clk 0:00:19]} 44. Ke5
{[%clk 0:03:36]} 44... Ra2 {[%clk 0:00:17.5]} 45. a5 {[%clk 0:03:36]} 45... Rc2
{[%clk 0:00:14.8]} 46. Kxd5 {[%clk 0:03:37.3]} 46... Rxc3 {[%clk 0:00:17]} 47.
Kxe4 {[%clk 0:03:38.8]} 47... Rc1 {[%clk 0:00:19.3]} 48. d5 {[%clk 0:03:40.7]}
48... c3 {[%clk 0:00:21.4]} 49. d6 {[%clk 0:03:42.7]} 49... c2 {[%clk 0:00:22]}
50. Kd3 {[%clk 0:03:43.7]} 50... Rd1+ {[%clk 0:00:22.3]} 51. Kxc2 {[%clk
0:03:45.5]} 51... Rxd6 {[%clk 0:00:24.3]} 52. Kc3 {[%clk 0:03:43.2]} 52... Kf5
{[%clk 0:00:26.2]} 53. Kc4 {[%clk 0:03:44.5]} 53... Ke4 {[%clk 0:00:27.8]} 54.
b5 {[%clk 0:03:46.4]} 54... Kxe3 {[%clk 0:00:28.1]} 55. Kc5 {[%clk 0:03:48.2]}
55... Rh6 {[%clk 0:00:27.3]} 56. b6 {[%clk 0:03:48.8]} 56... axb6+ {[%clk
0:00:27.7]} 57. axb6 {[%clk 0:03:50.3]} 57... Ke4 {[%clk 0:00:28.3]} 58. Kb5
{[%clk 0:03:50.9]} 58... Ke5 {[%clk 0:00:29.3]} 59. Kc5 {[%clk 0:03:52.3]} 59...
Ke4 {[%clk 0:00:30.9]} 60. Kb5 {[%clk 0:03:53.2]} 60... Kd5 {[%clk 0:00:33.3]}
61. Ka5 {[%clk 0:03:53.8]} 61... Kc5 {[%clk 0:00:34.7]} 62. Ka4 {[%clk
0:03:54.9]} 62... Rxb6 {[%clk 0:00:35]} 0-1

[Event "Un Rapid per cominciare!"]
[Site "Chess.com"]
[Date "2020.04.10"]
[Round "3"]
[White "francesco_visen"]
[Black "sirmale49"]
[Result "1-0"]
[WhiteElo "1585"]
[BlackElo "1413"]
[TimeControl "720+3"]
[EndTime "12:19:53 PDT"]
[Termination "francesco_visen ha vinto per scaccomatto"]

1. e4 {[%clk 0:11:50.3]} 1... d5 {[%clk 0:11:57.1]} 2. exd5 {[%clk 0:11:50.6]}
2... Qxd5 {[%clk 0:11:59]} 3. Nc3 {[%clk 0:11:52.8]} 3... Qd6 {[%clk 0:12:00.3]}
4. d4 {[%clk 0:11:52.5]} 4... c6 {[%clk 0:12:02.3]} 5. Nf3 {[%clk 0:11:46.3]}
5... Bg4 {[%clk 0:12:02.6]} 6. Be2 {[%clk 0:11:44.2]} 6... Nf6 {[%clk
0:12:04.1]} 7. O-O {[%clk 0:11:42.4]} 7... e6 {[%clk 0:12:03.7]} 8. Bg5 {[%clk
0:11:38.3]} 8... Nbd7 {[%clk 0:12:00.6]} 9. Re1 {[%clk 0:11:27.6]} 9... h6
{[%clk 0:12:01]} 10. Bxf6 {[%clk 0:11:22.1]} 10... Nxf6 {[%clk 0:12:01.7]} 11.
Ne5 {[%clk 0:11:10.4]} 11... Bxe2 {[%clk 0:12:00]} 12. Qxe2 {[%clk 0:11:13.3]}
12... Nd5 {[%clk 0:11:48.3]} 13. Nxd5 {[%clk 0:11:10.3]} 13... cxd5 {[%clk
0:11:46.7]} 14. Qb5+ {[%clk 0:11:02.5]} 14... Ke7 {[%clk 0:11:09.5]} 15. Qxb7+
{[%clk 0:10:58.1]} 15... Kf6 {[%clk 0:11:01]} 16. Qxf7+ {[%clk 0:09:40.6]} 16...
Kg5 {[%clk 0:10:48.3]} 17. h4+ {[%clk 0:09:41.4]} 17... Kxh4 {[%clk 0:10:34.2]}
18. g3+ {[%clk 0:09:43.3]} 18... Kg5 {[%clk 0:10:00.3]} 19. Qg6# {[%clk
0:09:34.9]} 1-0

[Event "Un Rapid per cominciare!"]
[Site "Chess.com"]
[Date "2020.04.10"]
[Round "3"]
[White "ottovolante"]
[Black "Niklas1205"]
[Result "1-0"]
[WhiteElo "992"]
[BlackElo "915"]
[TimeControl "720+3"]
[EndTime "12:25:10 PDT"]
[Termination "ottovolante ha vinto per abbandono"]

1. e4 {[%clk 0:12:02.9]} 1... f6 {[%clk 0:12:02.9]} 2. d4 {[%clk 0:12:03.1]}
2... c6 {[%clk 0:12:03.8]} 3. Bc4 {[%clk 0:12:00.6]} 3... d5 {[%clk 0:12:06.7]}
4. exd5 {[%clk 0:11:58.7]} 4... cxd5 {[%clk 0:11:59.6]} 5. Bb5+ {[%clk
0:11:59.8]} 5... Bd7 {[%clk 0:11:56.3]} 6. Qh5+ {[%clk 0:11:55.6]} 6... g6
{[%clk 0:11:56.3]} 7. Qxd5 {[%clk 0:11:56.7]} 7... Nh6 {[%clk 0:11:46.5]} 8.
Qxb7 {[%clk 0:11:55.5]} 8... Ng4 {[%clk 0:11:49.4]} 9. Qxa8 {[%clk 0:11:55.8]}
9... Bxb5 {[%clk 0:11:44.7]} 10. d5 {[%clk 0:11:36]} 10... Qa5+ {[%clk
0:11:41.3]} 11. c3 {[%clk 0:11:30.1]} 11... Qc7 {[%clk 0:11:40.9]} 12. Nf3
{[%clk 0:11:03.5]} 12... e6 {[%clk 0:11:26.6]} 13. a4 {[%clk 0:10:35.4]} 13...
Bd7 {[%clk 0:11:19.1]} 14. Be3 {[%clk 0:10:23.5]} 14... Bd6 {[%clk 0:10:57]} 15.
Qxa7 {[%clk 0:10:15.1]} 15... Qd8 {[%clk 0:10:48]} 16. Qd4 {[%clk 0:09:56.2]}
16... e5 {[%clk 0:10:44.7]} 17. Qb6 {[%clk 0:09:42.2]} 17... Qe7 {[%clk
0:10:39]} 18. Nbd2 {[%clk 0:09:22.9]} 18... O-O {[%clk 0:10:36.4]} 19. Nc4
{[%clk 0:09:04.5]} 19... Bc5 {[%clk 0:10:24.5]} 20. Bxc5 {[%clk 0:09:01.9]}
20... Qe8 {[%clk 0:10:22.6]} 21. Bxf8 {[%clk 0:09:02.6]} 21... Qxf8 {[%clk
0:10:23.3]} 22. d6 {[%clk 0:08:52.6]} 22... Nc6 {[%clk 0:10:03.1]} 23. Qc7
{[%clk 0:08:44.8]} 23... Qf7 {[%clk 0:09:55.3]} 24. Nb6 {[%clk 0:08:38]} 24...
Na5 {[%clk 0:09:37.3]} 25. Qxd7 {[%clk 0:08:34.5]} 25... Qf8 {[%clk 0:09:35.7]}
26. Qe6+ {[%clk 0:08:25.3]} 26... Kg7 {[%clk 0:09:34.2]} 27. Nd7 {[%clk
0:08:22.2]} 27... Qh8 {[%clk 0:09:29.4]} 28. Qxg4 {[%clk 0:08:19.5]} 28... f5
{[%clk 0:09:27.1]} 29. Qg5 {[%clk 0:08:15.8]} 29... Qe8 {[%clk 0:09:06.9]} 30.
Qf6+ {[%clk 0:08:11.8]} 30... Kh6 {[%clk 0:09:03.1]} 31. Ndxe5 {[%clk
0:08:06.1]} 31... Qxa4 {[%clk 0:08:53.4]} 32. Qg5+ {[%clk 0:08:06.9]} 32... Kg7
{[%clk 0:08:46.8]} 33. d7 {[%clk 0:08:03.8]} 33... Qe4+ {[%clk 0:08:43.6]} 34.
Qe3 {[%clk 0:07:57.2]} 34... Nb7 {[%clk 0:08:37.8]} 35. Qxe4 {[%clk 0:07:52.5]}
35... fxe4 {[%clk 0:08:37]} 36. Ng5 {[%clk 0:07:49.7]} 36... e3 {[%clk
0:08:28.8]} 37. fxe3 {[%clk 0:07:49.7]} 1-0

[Event "Un Rapid per cominciare!"]
[Site "Chess.com"]
[Date "2020.04.10"]
[Round "3"]
[White "caramante"]
[Black "Delsoldato03"]
[Result "1-0"]
[WhiteElo "1454"]
[BlackElo "1125"]
[TimeControl "720+3"]
[EndTime "12:25:21 PDT"]
[Termination "caramante ha vinto per abbandono"]

1. Nf3 {[%clk 0:11:55.5]} 1... Nf6 {[%clk 0:12:00.3]} 2. d4 {[%clk 0:11:54.6]}
2... d5 {[%clk 0:11:58.5]} 3. g3 {[%clk 0:11:56.5]} 3... Nbd7 {[%clk 0:11:42.2]}
4. Bg2 {[%clk 0:11:58.2]} 4... c5 {[%clk 0:11:41.8]} 5. c3 {[%clk 0:11:58.7]}
5... e6 {[%clk 0:11:29.2]} 6. O-O {[%clk 0:11:59.1]} 6... Be7 {[%clk 0:11:14.6]}
7. Re1 {[%clk 0:11:56.2]} 7... O-O {[%clk 0:11:15.2]} 8. Ne5 {[%clk 0:11:47.7]}
8... Qc7 {[%clk 0:11:09]} 9. Nxd7 {[%clk 0:11:46.1]} 9... Bxd7 {[%clk
0:11:07.6]} 10. h3 {[%clk 0:11:44]} 10... Rac8 {[%clk 0:10:42.4]} 11. Be3 {[%clk
0:11:39.8]} 11... cxd4 {[%clk 0:10:08.8]} 12. Bxd4 {[%clk 0:11:26.9]} 12... a6
{[%clk 0:10:00]} 13. Nd2 {[%clk 0:11:21.6]} 13... Bb5 {[%clk 0:09:50]} 14. Bxf6
{[%clk 0:11:14.4]} 14... Bxf6 {[%clk 0:09:50.6]} 15. e4 {[%clk 0:11:16.2]} 15...
Rfd8 {[%clk 0:09:41.4]} 16. exd5 {[%clk 0:11:16.4]} 16... exd5 {[%clk
0:09:17.6]} 17. Qf3 {[%clk 0:10:53.9]} 17... Bc6 {[%clk 0:09:09.7]} 18. Qg4
{[%clk 0:10:34.9]} 18... Qb6 {[%clk 0:08:31.3]} 19. Nb3 {[%clk 0:10:12.7]} 19...
d4 {[%clk 0:08:06.4]} 20. Nxd4 {[%clk 0:10:07.4]} 20... Bxg2 {[%clk 0:07:53.4]}
21. Kxg2 {[%clk 0:09:53.7]} 21... Qxb2 {[%clk 0:07:49.1]} 22. Nf5 {[%clk
0:09:20.8]} 22... Rd2 {[%clk 0:07:25.4]} 23. Nh6+ {[%clk 0:09:04.1]} 23... Kf8
{[%clk 0:07:15.8]} 24. Qxc8+ {[%clk 0:09:02.6]} 24... Bd8 {[%clk 0:07:02.2]} 25.
Ng4 {[%clk 0:08:39.3]} 25... h5 {[%clk 0:06:52.9]} 26. Qc5+ {[%clk 0:08:31.5]}
26... Kg8 {[%clk 0:06:37.5]} 27. Re8+ {[%clk 0:08:30.6]} 1-0

[Event "Un Rapid per cominciare!"]
[Site "Chess.com"]
[Date "2020.04.10"]
[Round "3"]
[White "Luca090267"]
[Black "sergiodone"]
[Result "1-0"]
[WhiteElo "1278"]
[BlackElo "1258"]
[TimeControl "720+3"]
[EndTime "12:29:42 PDT"]
[Termination "Luca090267 ha vinto per abbandono"]

1. e4 {[%clk 0:12:02.9]} 1... c5 {[%clk 0:11:56.3]} 2. Nc3 {[%clk 0:12:03.5]}
2... d6 {[%clk 0:11:56.1]} 3. g3 {[%clk 0:12:05.5]} 3... e6 {[%clk 0:11:50]} 4.
Bg2 {[%clk 0:12:07.3]} 4... Be7 {[%clk 0:11:49.9]} 5. d3 {[%clk 0:12:09.1]} 5...
a6 {[%clk 0:11:49.5]} 6. f4 {[%clk 0:12:10.4]} 6... Nc6 {[%clk 0:11:51.2]} 7.
Nf3 {[%clk 0:12:11.4]} 7... Qc7 {[%clk 0:11:52.8]} 8. O-O {[%clk 0:12:12.3]}
8... h5 {[%clk 0:11:54.6]} 9. h3 {[%clk 0:12:00.3]} 9... Nf6 {[%clk 0:11:54.6]}
10. Be3 {[%clk 0:11:53.5]} 10... b5 {[%clk 0:11:53.4]} 11. Qd2 {[%clk
0:11:55.1]} 11... Bb7 {[%clk 0:11:54.2]} 12. a3 {[%clk 0:11:55.1]} 12... Rd8
{[%clk 0:11:38.3]} 13. Qf2 {[%clk 0:11:06.5]} 13... Nb8 {[%clk 0:10:47.8]} 14.
Nd2 {[%clk 0:10:45.5]} 14... Nbd7 {[%clk 0:10:39.7]} 15. Rad1 {[%clk 0:10:10.3]}
15... O-O {[%clk 0:10:40.8]} 16. Nb3 {[%clk 0:09:54.1]} 16... d5 {[%clk
0:10:34.1]} 17. exd5 {[%clk 0:09:44.9]} 17... Nxd5 {[%clk 0:10:25.6]} 18. Nxd5
{[%clk 0:09:44.5]} 18... Bxd5 {[%clk 0:10:21]} 19. Bxd5 {[%clk 0:09:22.1]} 19...
e5 {[%clk 0:10:22]} 20. Bg2 {[%clk 0:08:14.4]} 20... Bd6 {[%clk 0:10:07.9]} 21.
c3 {[%clk 0:07:56.5]} 21... c4 {[%clk 0:10:02.4]} 22. dxc4 {[%clk 0:07:55]}
22... bxc4 {[%clk 0:10:02.6]} 23. Nd2 {[%clk 0:07:39.4]} 23... exf4 {[%clk
0:10:03.9]} 24. Bxf4 {[%clk 0:07:39.7]} 24... Ne5 {[%clk 0:10:04.5]} 25. Ne4
{[%clk 0:07:25.1]} 25... Nd3 {[%clk 0:09:18.4]} 26. Bxd6 {[%clk 0:07:12.4]}
26... Rxd6 {[%clk 0:09:19.6]} 27. Qc2 {[%clk 0:05:59.3]} 27... Qb6+ {[%clk
0:09:18.1]} 28. Kh2 {[%clk 0:05:53.8]} 28... Rg6 {[%clk 0:09:14.2]} 29. b4
{[%clk 0:05:30.8]} 29... Qc7 {[%clk 0:09:09]} 30. Rf3 {[%clk 0:05:07.9]} 30...
h4 {[%clk 0:09:10.9]} 31. Rdxd3 {[%clk 0:04:54.9]} 31... cxd3 {[%clk 0:09:10.8]}
32. Qxd3 {[%clk 0:04:56.1]} 32... hxg3+ {[%clk 0:09:12.4]} 33. Rxg3 {[%clk
0:04:55.5]} 33... Re8 {[%clk 0:09:05.6]} 34. Qf3 {[%clk 0:04:47]} 34... Rxe4
{[%clk 0:08:55.2]} 35. Qxe4 {[%clk 0:04:37.6]} 35... Qxg3+ {[%clk 0:08:55.2]}
36. Kh1 {[%clk 0:04:38.2]} 36... Qf2 {[%clk 0:08:51.5]} 37. Qf3 {[%clk 0:04:10]}
37... Qe1+ {[%clk 0:08:49.7]} 38. Kh2 {[%clk 0:04:10.6]} 38... Rf6 {[%clk
0:08:45.6]} 39. Qa8+ {[%clk 0:04:01.8]} 39... Kh7 {[%clk 0:08:45.4]} 40. Qe4+
{[%clk 0:04:02.4]} 40... g6 {[%clk 0:08:46.1]} 41. Qxe1 {[%clk 0:03:56.3]} 1-0

[Event "Un Rapid per cominciare!"]
[Site "Chess.com"]
[Date "2020.04.10"]
[Round "3"]
[White "lucatarozzi"]
[Black "Piccolorso"]
[Result "0-1"]
[WhiteElo "1181"]
[BlackElo "1473"]
[TimeControl "720+3"]
[EndTime "12:29:49 PDT"]
[Termination "Piccolorso ha vinto per abbandono"]

1. d4 {[%clk 0:12:02.9]} 1... Nf6 {[%clk 0:11:54.9]} 2. Nf3 {[%clk 0:12:02]}
2... e6 {[%clk 0:11:09.3]} 3. Bf4 {[%clk 0:12:00.4]} 3... b6 {[%clk 0:11:07.7]}
4. e3 {[%clk 0:12:01.1]} 4... Bb7 {[%clk 0:11:09.4]} 5. Nbd2 {[%clk 0:12:02.1]}
5... d5 {[%clk 0:10:56]} 6. c3 {[%clk 0:12:00.6]} 6... c5 {[%clk 0:10:57.8]} 7.
Bd3 {[%clk 0:11:59.1]} 7... Ne4 {[%clk 0:10:45.2]} 8. O-O {[%clk 0:11:47.5]}
8... Bd6 {[%clk 0:10:36.2]} 9. Ne5 {[%clk 0:11:39.6]} 9... Nxd2 {[%clk
0:10:26.7]} 10. Qxd2 {[%clk 0:11:39]} 10... O-O {[%clk 0:10:28.4]} 11. Qc2
{[%clk 0:11:38.8]} 11... f5 {[%clk 0:10:30.1]} 12. Qe2 {[%clk 0:11:32.6]} 12...
Nd7 {[%clk 0:10:30.8]} 13. Qh5 {[%clk 0:11:18.2]} 13... Bxe5 {[%clk 0:10:13.1]}
14. dxe5 {[%clk 0:11:18.4]} 14... Qc7 {[%clk 0:09:57]} 15. c4 {[%clk 0:11:01.6]}
15... Qc6 {[%clk 0:09:09]} 16. Be2 {[%clk 0:10:36.8]} 16... dxc4 {[%clk
0:07:44]} 17. Bf3 {[%clk 0:10:37.7]} 17... Qc7 {[%clk 0:07:43.6]} 18. Bxb7
{[%clk 0:10:34.5]} 18... Qxb7 {[%clk 0:07:45]} 19. Rad1 {[%clk 0:10:37]} 19...
Rad8 {[%clk 0:07:26.5]} 20. Qe2 {[%clk 0:10:31.2]} 20... Qe4 {[%clk 0:07:19.4]}
21. Bg5 {[%clk 0:10:21.5]} 21... Nxe5 {[%clk 0:07:07.4]} 22. Bxd8 {[%clk
0:10:20.2]} 22... Nd3 {[%clk 0:07:01.1]} 23. Bg5 {[%clk 0:10:10.6]} 23... h6
{[%clk 0:06:56.2]} 24. Bf4 {[%clk 0:10:05.1]} 24... e5 {[%clk 0:06:55.2]} 25.
Rxd3 {[%clk 0:10:06.2]} 25... cxd3 {[%clk 0:06:50]} 26. Qd2 {[%clk 0:10:07.8]}
26... exf4 {[%clk 0:06:50.3]} 27. exf4 {[%clk 0:10:03.6]} 27... c4 {[%clk
0:06:49.6]} 28. Qb4 {[%clk 0:10:02.4]} 28... Qc6 {[%clk 0:06:25.4]} 29. g3
{[%clk 0:09:56.7]} 29... a5 {[%clk 0:06:23.8]} 30. Qc3 {[%clk 0:09:55.9]} 30...
Re8 {[%clk 0:05:46.8]} 31. a3 {[%clk 0:09:50.7]} 31... Qc5 {[%clk 0:05:43.1]}
32. h4 {[%clk 0:09:41.4]} 32... Re2 {[%clk 0:05:30.5]} 33. b4 {[%clk 0:09:24.7]}
33... axb4 {[%clk 0:05:30.8]} 34. axb4 {[%clk 0:09:25.9]} 34... Qd5 {[%clk
0:05:22.9]} 35. Qa3 {[%clk 0:09:24.4]} 35... b5 {[%clk 0:04:28.5]} 36. Qa6
{[%clk 0:09:20.6]} 36... d2 {[%clk 0:04:27.1]} 37. Qc8+ {[%clk 0:09:21.5]} 37...
Kh7 {[%clk 0:04:25.5]} 38. Qc5 {[%clk 0:09:13.3]} 38... d1=Q {[%clk 0:04:15.5]}
39. Rxd1 {[%clk 0:09:06.1]} 39... Qxd1+ {[%clk 0:04:16.1]} 40. Kg2 {[%clk
0:09:07.8]} 40... Qd7 {[%clk 0:03:51.9]} 41. h5 {[%clk 0:09:02.6]} 41... Rd2
{[%clk 0:03:48.1]} 42. Qe5 {[%clk 0:08:49.8]} 42... Qd5+ {[%clk 0:03:43.5]} 43.
Qxd5 {[%clk 0:08:50.4]} 43... Rxd5 {[%clk 0:03:45.1]} 44. Kf1 {[%clk 0:08:52.5]}
44... Rd3 {[%clk 0:03:45.7]} 45. Ke2 {[%clk 0:08:54.5]} 45... Rb3 {[%clk
0:03:46.8]} 0-1

[Event "Un Rapid per cominciare!"]
[Site "Chess.com"]
[Date "2020.04.10"]
[Round "3"]
[White "mr6701"]
[Black "MarcoCiva"]
[Result "1/2-1/2"]
[WhiteElo "1458"]
[BlackElo "1909"]
[TimeControl "720+3"]
[EndTime "12:30:28 PDT"]
[Termination "Patta per materiale insufficiente"]

1. e4 {[%clk 0:12:02.9]} 1... e5 {[%clk 0:11:53.5]} 2. d4 {[%clk 0:12:04.8]}
2... d6 {[%clk 0:11:50.6]} 3. Nf3 {[%clk 0:12:05.3]} 3... Nc6 {[%clk 0:11:47.4]}
4. Bc4 {[%clk 0:12:04.7]} 4... Bg4 {[%clk 0:11:39.3]} 5. dxe5 {[%clk 0:12:04.4]}
5... Nxe5 {[%clk 0:11:39.1]} 6. Be2 {[%clk 0:11:39.7]} 6... Nf6 {[%clk
0:11:32.4]} 7. Nc3 {[%clk 0:11:36.3]} 7... Be7 {[%clk 0:11:22]} 8. Bf4 {[%clk
0:11:37.4]} 8... O-O {[%clk 0:10:57.6]} 9. Nxe5 {[%clk 0:11:33.8]} 9... dxe5
{[%clk 0:10:55.8]} 10. Bxe5 {[%clk 0:11:18.5]} 10... Bxe2 {[%clk 0:10:57.2]} 11.
Qxe2 {[%clk 0:11:18.6]} 11... Bb4 {[%clk 0:10:42.9]} 12. O-O {[%clk 0:11:01.5]}
12... Qe7 {[%clk 0:10:30.9]} 13. f4 {[%clk 0:11:03.1]} 13... Bxc3 {[%clk
0:10:14.3]} 14. bxc3 {[%clk 0:10:42.1]} 14... Rad8 {[%clk 0:09:31.9]} 15. Rae1
{[%clk 0:10:39.6]} 15... Nd7 {[%clk 0:09:17.1]} 16. Bd4 {[%clk 0:10:35.1]} 16...
c5 {[%clk 0:09:15.8]} 17. Bf2 {[%clk 0:10:36.7]} 17... Qe6 {[%clk 0:08:51.1]}
18. Qb5 {[%clk 0:10:09.5]} 18... b6 {[%clk 0:08:30.7]} 19. a4 {[%clk 0:10:05.3]}
19... Rfe8 {[%clk 0:07:52]} 20. a5 {[%clk 0:10:03]} 20... Qa2 {[%clk 0:07:50.6]}
21. axb6 {[%clk 0:10:00]} 21... axb6 {[%clk 0:07:41.4]} 22. Qb3 {[%clk
0:10:01.8]} 22... Qxb3 {[%clk 0:07:24.5]} 23. cxb3 {[%clk 0:10:03]} 23... Nf6
{[%clk 0:07:19.7]} 24. e5 {[%clk 0:10:02.6]} 24... Nd5 {[%clk 0:07:20]} 25. c4
{[%clk 0:09:54.8]} 25... Nxf4 {[%clk 0:07:20.6]} 26. Re3 {[%clk 0:09:45.5]}
26... Nd3 {[%clk 0:07:15.9]} 27. Bh4 {[%clk 0:09:45.2]} 27... f6 {[%clk
0:07:08.8]} 28. Rd1 {[%clk 0:09:37.2]} 28... Nxe5 {[%clk 0:07:03.3]} 29. Rde1
{[%clk 0:09:32.1]} 29... Kf7 {[%clk 0:06:50.4]} 30. Bg3 {[%clk 0:09:33.8]} 30...
Ng4 {[%clk 0:06:11.8]} 31. Rxe8 {[%clk 0:09:33.7]} 31... Rxe8 {[%clk 0:06:13.1]}
32. Rxe8 {[%clk 0:09:36.6]} 32... Kxe8 {[%clk 0:06:14.8]} 33. Bc7 {[%clk
0:09:39.5]} 33... Ne5 {[%clk 0:05:49.3]} 34. Bxb6 {[%clk 0:09:41]} 34... Nd3
{[%clk 0:05:42.3]} 35. Kf1 {[%clk 0:09:36.5]} 35... Kd7 {[%clk 0:05:41.1]} 36.
g3 {[%clk 0:09:21.4]} 36... Kc6 {[%clk 0:05:42.6]} 37. Ba5 {[%clk 0:09:23.2]}
37... Nc1 {[%clk 0:05:31.4]} 38. b4 {[%clk 0:09:24.5]} 38... cxb4 {[%clk
0:05:33.1]} 39. Bxb4 {[%clk 0:09:26.3]} 39... Nd3 {[%clk 0:05:34.2]} 40. Bf8
{[%clk 0:09:24.5]} 40... g6 {[%clk 0:05:33]} 41. g4 {[%clk 0:09:21.9]} 41... Ne5
{[%clk 0:05:22.5]} 42. h3 {[%clk 0:09:23.8]} 42... Nxc4 {[%clk 0:05:22.7]} 43.
Bg7 {[%clk 0:09:24.3]} 43... Ne3+ {[%clk 0:05:12.5]} 44. Kf2 {[%clk 0:09:22.3]}
44... Nd5 {[%clk 0:05:14.2]} 45. Kf3 {[%clk 0:09:24.2]} 45... Kd6 {[%clk
0:05:12.6]} 46. Ke4 {[%clk 0:09:23]} 46... Ke6 {[%clk 0:05:14.7]} 47. Bf8 {[%clk
0:09:19.2]} 47... h5 {[%clk 0:04:50.5]} 48. gxh5 {[%clk 0:09:16.9]} 48... gxh5
{[%clk 0:04:51.6]} 49. Ba3 {[%clk 0:09:05.6]} 49... f5+ {[%clk 0:04:51.9]} 50.
Kf3 {[%clk 0:09:07.5]} 50... Nf6 {[%clk 0:04:46.9]} 51. Kf4 {[%clk 0:09:03]}
51... Nd5+ {[%clk 0:04:40.3]} 52. Kg5 {[%clk 0:09:03.6]} 52... Nf6 {[%clk
0:04:38.7]} 53. Bb2 {[%clk 0:09:04.7]} 53... Ne4+ {[%clk 0:04:36]} 54. Kxh5
{[%clk 0:09:05.6]} 54... f4 {[%clk 0:04:37.7]} 55. Kg4 {[%clk 0:09:06.3]} 55...
Nf2+ {[%clk 0:04:31.7]} 56. Kxf4 {[%clk 0:08:51.7]} 56... Nxh3+ {[%clk
0:04:33.2]} 1/2-1/2